[Event "47th GRE-chT 2019"]
[Site "Patra"]
[Date "2019.07.05"]
[Round "5.8"]
[White "Zisiadis, Dimitrios"]
[Black "Kouskoutis, Georgios-Alexandros"]
[Result "0-1"]
[ECO "E60"]
[WhiteElo "2082"]
[BlackElo "2256"]
[Annotator "NA"]
[PlyCount "218"]
[EventDate "2019.07.02"]
[EventCountry "GRE"]
[SourceTitle "playchess.com"]
[Source "ChessBase"]
[SourceQuality "1"]
[TimeControl "5400+30"]

1. Nf3 {[%emt 0:00:00]} c5 {[%emt 0:00:00]} 2. c4 {[%emt 0:00:17]} g6 {[%emt 0:00:31]} 3. d4 {[%emt 0:00:20]} cxd4 {[%emt 0:00:14]} 4. Nxd4 {[%emt 0:00:39]} Bg7 {[%emt 0:01:54]} 5. Nc3 {[%emt 0:00:16]} Nc6 {[%emt 0:01:44]} 6. Nb3 {[%emt 0:00:34]} Nf6 {[%emt 0:00:35]} 7. g3 {[%emt 0:02:24]} O-O {[%emt 0:00:05]} 8. Bg2 {[%emt 0:00:50]} d6 {[%emt 0:01:09]} 9. O-O {[%emt 0:10:13]} a5 {[%emt 0:17:35]} 10. Na4 {[%emt 0:14:00]} Be6 {[%emt 0:04:29]} 11. c5 {[%emt 0:10:32]} d5 {[%emt 0:16:31]} 12. Be3 {[%emt 0:10:12]} Ra6 {[%emt 0:07:30]} 13. h3 {[%emt 0:08:17]} Bd7 {[%emt 0:04:28]} 14. Nb6 {[%emt 0:03:53]} a4 {[%emt 0:03:16]} 15. Nd4 {[%emt 0:05:28]} e5 {[%emt 0:06:40]} 16. Nxc6 {[%emt 0:03:16]} Bxc6 {[%emt 0:06:03]} 17. Bg5 {[%emt 0:08:33]} e4 {[%emt 0:01:50]} 18. Qd2 {[%emt 0:10:26]} d4 {[%emt 0:03:07]} 19. Rfd1 {[%emt 0:02:35]} Qb8 {[%emt 0:03:44]} 20. Bf4 {[%emt 0:00:11]} Qe8 {[%emt 0:09:12]} 21. Bd6 {[%emt 0:00:04]} e3 {[%emt 0:04:01]} 22. Qxd4 {[%emt 0:01:30]} Ne4 {[%emt 0:00:54]} 23. Qxe3 {[%emt 0:00:04]} Nxd6 {[%emt 0:00:18]} 24. Rxd6 {[%emt 0:00:31]} Qxe3 {[%emt 0:00:04]} 25. fxe3 {[%emt 0:02:01]} Bxg2 {[%emt 0:00:07]} 26. Kxg2 {[%emt 0:00:05]} a3 {[%emt 0:02:21]} 27. Rad1 {[%emt 0:00:13]} axb2 {[%emt 0:00:07]} 28. a4 {[%emt 0:00:43]} h5 {[%emt 0:00:29]} 29. Kf3 {[%emt 0:01:00]} Ra5 {[%emt 0:00:43]} 30. R6d5 {[%emt 0:00:24]} Re8 {[%emt 0:02:26]} 31. Rb1 {[%emt 0:01:22]} Re6 {[%emt 0:02:22]} 32. e4 {[%emt 0:01:06]} Rc6 {[%emt 0:00:41]} 33. Nd7 {[%emt 0:01:05]} Rxa4 {[%emt 0:00:12]} 34. e5 {[%emt 0:00:53]} Rb4 {[%emt 0:00:31]} 35. Rd2 {[%emt 0:00:40]} Rc7 {[%emt 0:00:51]} 36. Nf6+ {[%emt 0:01:05]} Bxf6 {[%emt 0:00:05]} 37. exf6 {[%emt 0:00:32]} Rxc5 {[%emt 0:00:52]} 38. Rbxb2 {[%emt 0:01:29]} Rf5+ {[%emt 0:00:18]} 39. Kg2 {[%emt 0:00:58]} Rxb2 {[%emt 0:00:00]} 40. Rxb2 {[%emt 0:00:00]} b5 {[%emt 0:00:00]} 41. e4 {[%emt 0:00:00]} Rc5 {[%emt 0:00:00]} 42. Kf3 {[%emt 0:00:00]} g5 {[%emt 0:00:00]} 43. Ra2 {[%emt 0:00:00]} Kh7 {[%emt 0:00:00]} 44. Ra6 {[%emt 0:00:00]} Kg6 {[%emt 0:00:00]} 45. Rb6 {[%emt 0:00:00]} Rc3+ {[%emt 0:00:00]} 46. Kg2 {[%emt 0:00:44]} Re3 {[%emt 0:00:00]} 47. Rxb5 {[%emt 0:00:04]} Rxe4 {[%emt 0:00:00]} 48. Kf3 {[%emt 0:02:03]} Ra4 {[%emt 0:00:00]} 49. Rc5 {[%emt 0:00:38]} Ra3+ {[%emt 0:00:00]} 50. Kg2 {[%emt 0:01:00]} Ra2+ {[%emt 0:01:19]} 51. Kg1 {[%emt 0:01:20]} Ra6 {[%emt 0:00:09]} 52. Kg2 {[%emt 0:00:14]} Rxf6 {[%emt 0:00:57]} 53. Rb5 {[%emt 0:00:31]} Re6 {[%emt 0:01:06]} 54. g4 {[%emt 0:00:58]} f6 {[%emt 0:01:34]} 55. Ra5 {[%emt 0:00:04]} Rb6 {[%emt 0:03:35]} 56. Ra2 {[%emt 0:00:32]} Rb4 {[%emt 0:00:21]} 57. Kg3 {[%emt 0:00:30]} Rb3+ {[%emt 0:00:09]} 58. Kg2 {[%emt 0:00:34]} hxg4 {[%emt 0:00:04]} 59. hxg4 {[%emt 0:00:32]} Kf7 {[%emt 0:00:37]} 60. Ra6 {[%emt 0:00:17]} Ke7 {[%emt 0:00:32]} 61. Kf2 {[%emt 0:00:17]} Rd3 {[%emt 0:00:44]} 62. Kg2 {[%emt 0:00:11]} Rd6 {[%emt 0:00:56]} 63. Ra8 {[%emt 0:01:20]} Rb6 {[%emt 0:00:22]} 64. Kf3 {[%emt 0:00:40]} Ke6 {[%emt 0:00:34]} 65. Ra5 {[%emt 0:00:22]} Rb3+ {[%emt 0:00:36]} 66. Kf2 {[%emt 0:00:06]} Rd3 {[%emt 0:00:37]} 67. Kg2 {[%emt 0:00:11]} Rd5 {[%emt 0:00:40]} 68. Ra3 {[%emt 0:00:56]} Ke5 {[%emt 0:00:10]} 69. Kf3 {[%emt 0:01:09]} Rd6 {[%emt 0:00:31]} 70. Ra5+ {[%emt 0:00:14]} Kd4 {[%emt 0:00:19]} 71. Ra4+ {[%emt 0:00:30]} Kd3 {[%emt 0:00:39]} 72. Ra3+ {[%emt 0:00:10]} Kc4 {[%emt 0:00:29]} 73. Ra4+ {[%emt 0:00:08]} Kb3 {[%emt 0:00:40]} 74. Ra7 {[%emt 0:00:49]} Kc4 {[%emt 0:00:12]} 75. Ra4+ {[%emt 0:00:28]} Kd5 {[%emt 0:00:17]} 76. Ra5+ {[%emt 0:00:14]} Ke6 {[%emt 0:00:11]} 77. Ra3 {[%emt 0:01:14]} Rd4 {[%emt 0:00:43]} 78. Ra6+ {[%emt 0:00:28]} Ke5 {[%emt 0:00:25]} 79. Ra5+ {[%emt 0:00:08]} Rd5 {[%emt 0:00:12]} 80. Ra3 {[%emt 0:00:46]} Rc5 {[%emt 0:01:36]} 81. Rd3 {[%emt 0:00:46]} Rc1 {[%emt 0:00:29]} 82. Ra3 {[%emt 0:00:14]} Rf1+ {[%emt 0:00:20]} 83. Kg3 {[%emt 0:00:37]} Rd1 {[%emt 0:00:31]} 84. Kf3 {[%emt 0:00:39]} Rd4 {[%emt 0:00:11]} 85. Ra5+ {[%emt 0:00:25]} Ke6 {[%emt 0:00:09]} 86. Ra6+ {[%emt 0:00:32]} Rd6 {[%emt 0:00:20]} 87. Ra3 {[%emt 0:00:36]} Rb6 {[%emt 0:00:55]} 88. Kg3 {[%emt 0:00:28]} Kd5 {[%emt 0:00:29]} 89. Kf3 {[%emt 0:00:28]} Ke6 {[%emt 0:00:09]} 90. Kg3 {[%emt 0:00:27]} Rb4 {[%emt 0:00:43]} 91. Kf3 {[%emt 0:00:29]} Rf4+ {[%emt 0:00:07]} 92. Kg3 {[%emt 0:00:27]} Rc4 {[%emt 0:00:50]} 93. Kf3 {[%emt 0:00:33]} Kd5 {[%emt 0:01:14]} 94. Rd3+ {[%emt 0:00:09]} Kc5 {[%emt 0:00:38]} 95. Ra3 {[%emt 0:00:17]} Kd4 {[%emt 0:00:33]} 96. Ra6 {[%emt 0:00:35]} Rc3+ {[%emt 0:00:17]} 97. Kf2 {[%emt 0:01:00]} Ke5 {[%emt 0:00:42]} 98. Rb6 {[%emt 0:00:35]} Rd3 {[%emt 0:00:12]} 99. Ra6 {[%emt 0:00:27]} Rd6 {[%emt 0:00:42]} 100. Ra4 {[%emt 0:00:18]} Rd4 {[%emt 0:00:06]} 101. Ra5+ {[%emt 0:00:07]} Kf4 {[%emt 0:00:18]} 102. Rf5+ {[%emt 0:00:04]} Kxg4 {[%emt 0:00:05]} 103. Rxf6 {[%emt 0:00:06]} Rf4+ {[%emt 0:00:11]} 104. Rxf4+ {[%emt 0:00:06]} Kxf4 {[%emt 0:00:14]} 105. Kg2 {[%emt 0:00:05]} Kg4 {[%emt 0:00:52]} 106. Kg1 {[%emt 0:00:09]} Kg3 {[%emt 0:00:17]} 107. Kh1 {[%emt 0:00:20]} g4 {[%emt 0:00:08]} 108. Kg1 {[%emt 0:00:16]} Kh3 {[%emt 0:00:06]} 109. Kh1 {[%emt 0:00:06]} g3 {[%emt 5:43:07]} 0-1

[Event "47th GRE-chT 2019"]
[Site "Patra"]
[Date "2019.07.05"]
[Round "5.8"]
[White "Makris, Spyridon-Dionysios"]
[Black "Alexiadis, Hristos"]
[Result "0-1"]
[ECO "A61"]
[WhiteElo "1884"]
[BlackElo "2344"]
[Annotator "NA RC"]
[PlyCount "96"]
[EventDate "2019.07.02"]
[EventCountry "GRE"]
[SourceTitle "playchess.com"]
[Source "ChessBase"]
[SourceQuality "1"]
[TimeControl "5400+30"]

1. d4 {[%emt 0:00:00]} Nf6 {[%emt 0:15:06]} 2. c4 {[%emt 0:00:00]} e6 {[%emt 0:02:37]} 3. Nc3 {[%emt 0:00:00]} c5 {[%emt 0:00:30]} 4. d5 {[%emt 0:00:11]} exd5 {[%emt 0:00:07]} 5. cxd5 {[%emt 0:00:05]} d6 {[%emt 0:00:04]} 6. Nf3 {[%emt 0:03:34]} g6 {[%emt 0:00:05]} 7. Nd2 {[%emt 0:00:05]} Nbd7 {[%emt 0:00:46]} 8. e4 {[%emt 0:00:47]} Bg7 {[%emt 0:00:07]} 9. Be2 {[%emt 0:01:37]} O-O {[%emt 0:00:11]} 10. O-O {[%emt 0:00:09]} Re8 {[%emt 0:00:05]} 11. Qc2 {[%emt 0:02:31]} a6 {[%emt 0:00:17]} 12. a4 {[%emt 0:00:04]} Rb8 {[%emt 0:04:17]} 13. a5 {[%emt 0:02:47]} Qe7 {[%emt 0:02:43]} 14. b3 {[%emt 0:14:49]} Ne5 {[%emt 0:14:31]} 15. Bb2 {[%emt 0:02:26]} g5 {[%emt 0:00:27]} 16. Rae1 {[%emt 0:07:27]} b5 {[%emt 0:10:52]} 17. axb6 {[%emt 0:00:56]} Rxb6 {[%emt 0:00:04]} 18. Nd1 {[%emt 0:02:44]} Bd7 {[%emt 0:12:31]} 19. Bxe5 {[%emt 0:00:31]} dxe5 {[%emt 0:00:06]} 20. Ne3 {[%emt 0:01:31]} Bf8 {[%emt 0:04:52]} 21. Ndc4 {[%emt 0:03:36]} Rb4 {[%emt 0:00:21]} 22. Ra1 {[%emt 0:00:05]} Bb5 {[%emt 0:03:18]} 23. f3 {[%emt 0:00:44]} Nh5 {[%emt 0:02:43]} 24. g3 {[%emt 0:00:18]} Nf6 {[%emt 0:02:43]} 25. Ra3 {[%emt 0:02:46]} h6 {[%emt 0:00:52]} 26. Qc3 {[%emt 0:01:53]} Qc7 {[%emt 0:02:15]} 27. Nc2 {[%emt 0:03:07]} Nd7 {[%emt 0:00:07]} 28. Ra2 {[%emt 0:00:13]} Bxc4 {[%emt 0:07:43]} 29. Nxb4 {[%emt 0:01:12]} Bxe2 {[%emt 0:00:03]} 30. Rxe2 {[%emt 0:00:09]} Qb6 {[%emt 0:00:12]} 31. Nc6 {[%emt 0:02:27]} c4+ {[%emt 0:01:55]} 32. Kh1 {[%emt 0:06:49]} cxb3 {[%emt 0:00:04]} 33. Rb1 {[%emt 0:03:47]} Nc5 {[%emt 0:00:04]} 34. Reb2 {[%emt 0:04:33]} Qb5 {[%emt 0:01:54]} 35. Rd2 {[%emt 0:03:19]} Bd6 {[%emt 0:00:28]} 36. h4 {[%emt 0:01:07]} Kg7 {[%emt 0:02:38]} 37. hxg5 {[%emt 0:02:51]} hxg5 {[%emt 0:00:01]} 38. Rh2 {[%emt 0:00:20]} f6 {[%emt 0:02:53]} 39. g4 {[%emt 0:00:53]} Rh8 {[%emt 0:02:17]} 40. Rxh8 {[%emt 0:00:00]} Kxh8 {[%emt 0:00:00]} 41. Na5 {[%emt 0:00:00]} Qe2 {[%emt 0:00:00]} 42. Nb7 {[%emt 0:00:00]} Nd3 {[%emt 0:00:00]} 43. Qc8+ {[%emt 0:00:00]} Kg7 {[%emt 0:00:00]} 44. Nxd6 {[%emt 0:00:00]} Qxf3+ {[%emt 0:00:00]} 45. Kh2 {[%emt 0:00:00]} Qf2+ {[%emt 0:00:00]} 46. Kh1 {[%emt 0:00:00]} Qh4+ {[%emt 0:00:00]} 47. Kg2 {[%emt 0:00:00]} Nf4+ {[%emt 0:00:00]} 48. Kf1 {[%emt 0:00:00]} Qh1+ {[%emt 0:00:00]} 0-1

[Event "47th GRE-chT 2019"]
[Site "Patra"]
[Date "2019.07.05"]
[Round "5.9"]
[White "Chatzieleftheriou, Andreas"]
[Black "Stefanou, Dimitrios"]
[Result "1-0"]
[ECO "C54"]
[WhiteElo "2208"]
[BlackElo "1975"]
[Annotator "RC"]
[PlyCount "77"]
[EventDate "2019.07.02"]
[EventCountry "GRE"]
[SourceTitle "playchess.com"]
[Source "ChessBase"]
[SourceQuality "1"]
[TimeControl "5400+30"]

1. e4 {[%emt 0:00:00]} e5 {[%emt 0:00:00]} 2. Nf3 {[%emt 0:00:00]} Nc6 {[%emt 0:00:00]} 3. Bc4 {[%emt 0:00:23]} Bc5 {[%emt 0:00:09]} 4. c3 {[%emt 0:00:16]} Nf6 {[%emt 0:00:10]} 5. d3 {[%emt 0:00:22]} d6 {[%emt 0:01:14]} 6. Bb3 {[%emt 0:00:41]} O-O {[%emt 0:00:51]} 7. O-O {[%emt 0:00:44]} a6 {[%emt 0:01:32]} 8. Nbd2 {[%emt 0:03:22]} Ba7 {[%emt 0:01:36]} 9. Re1 {[%emt 0:02:57]} Ne7 {[%emt 0:01:29]} 10. Nf1 {[%emt 0:03:17]} Ng6 {[%emt 0:00:14]} 11. Ng3 {[%emt 0:01:07]} h6 {[%emt 0:06:13]} 12. Bc2 {[%emt 0:10:03]} Re8 {[%emt 0:03:46]} 13. h3 {[%emt 0:05:02]} c6 {[%emt 0:12:41]} 14. d4 {[%emt 0:04:47]} Qc7 {[%emt 0:00:18]} 15. Be3 {[%emt 0:05:10]} Be6 {[%emt 0:05:02]} 16. Qd2 {[%emt 0:03:48]} Rad8 {[%emt 0:36:41]} 17. Nf5 {[%emt 0:03:53]} Bxf5 {[%emt 0:09:15]} 18. exf5 {[%emt 0:00:19]} Nf8 {[%emt 0:01:13]} 19. Bxh6 {[%emt 0:01:23]} N8h7 {[%emt 0:04:04]} 20. g4 {[%emt 0:06:30]} e4 {[%emt 0:01:29]} 21. g5 {[%emt 0:00:28]} gxh6 {[%emt 0:03:03]} 22. gxf6 {[%emt 0:00:34]} Kh8 {[%emt 0:00:34]} 23. Rxe4 {[%emt 0:00:30]} Rxe4 {[%emt 0:00:27]} 24. Bxe4 {[%emt 0:00:03]} Rg8+ {[%emt 0:00:29]} 25. Kh1 {[%emt 0:00:12]} Qd8 {[%emt 0:00:33]} 26. Qxh6 {[%emt 0:00:34]} Qxf6 {[%emt 0:00:06]} 27. Qxf6+ {[%emt 0:00:43]} Nxf6 {[%emt 0:00:06]} 28. Bd3 {[%emt 0:01:13]} Nd5 {[%emt 0:00:37]} 29. Re1 {[%emt 0:00:33]} Kg7 {[%emt 0:01:09]} 30. Bc4 {[%emt 0:03:29]} Kf6 {[%emt 0:00:43]} 31. Bxd5 {[%emt 0:00:27]} cxd5 {[%emt 0:00:15]} 32. Re3 {[%emt 0:01:13]} Bb6 {[%emt 0:00:43]} 33. Nh2 {[%emt 0:00:37]} Bd8 {[%emt 0:00:42]} 34. Rf3 {[%emt 0:00:39]} Re8 {[%emt 0:00:11]} 35. Ng4+ {[%emt 0:00:06]} Kg5 {[%emt 0:00:23]} 36. Ne3 {[%emt 0:00:10]} Kh4 {[%emt 0:01:10]} 37. f6 {[%emt 0:03:40]} Re6 {[%emt 0:01:06]} 38. Kg2 {[%emt 0:00:55]} Bxf6 {[%emt 0:00:49]} 39. Nxd5 {[%emt 0:00:09]} 1-0

[Event "47th GRE-chT 2019"]
[Site "Patra"]
[Date "2019.07.05"]
[Round "5.9"]
[White "Loukisas, Dimitrios"]
[Black "Fragkos, Vasileios"]
[Result "1-0"]
[ECO "E46"]
[WhiteElo "1898"]
[BlackElo "1901"]
[Annotator "NA RC"]
[PlyCount "85"]
[EventDate "2019.07.02"]
[EventCountry "GRE"]
[SourceTitle "playchess.com"]
[Source "ChessBase"]
[SourceQuality "1"]
[TimeControl "5400+30"]

1. d4 {[%emt 0:00:00]} Nf6 {[%emt 0:00:00]} 2. c4 {[%emt 0:00:00]} e6 {[%emt 0:00:00]} 3. Nc3 {[%emt 0:00:00]} Bb4 {[%emt 0:00:00]} 4. e3 {[%emt 0:00:00]} O-O {[%emt 0:00:00]} 5. Nge2 {[%emt 0:00:00]} Re8 {[%emt 0:00:00]} 6. a3 {[%emt 0:00:08]} Bf8 {[%emt 0:00:06]} 7. e4 {[%emt 0:01:14]} d6 {[%emt 0:00:35]} 8. f3 {[%emt 0:00:19]} Nbd7 {[%emt 0:00:18]} 9. Be3 {[%emt 0:00:17]} e5 {[%emt 0:02:22]} 10. d5 {[%emt 0:00:49]} a5 {[%emt 0:06:24]} 11. g4 {[%emt 0:04:32]} g6 {[%emt 0:07:01]} 12. Ng3 {[%emt 0:02:18]} Kg7 {[%emt 0:19:55]} 13. h4 {[%emt 0:04:35]} Ng8 {[%emt 0:00:57]} 14. b4 {[%emt 0:07:15]} Be7 {[%emt 0:01:54]} 15. h5 {[%emt 0:00:23]} Bg5 {[%emt 0:00:24]} 16. Bf2 {[%emt 0:00:56]} axb4 {[%emt 0:00:51]} 17. axb4 {[%emt 0:00:17]} Rxa1 {[%emt 0:00:32]} 18. Qxa1 {[%emt 0:00:05]} Qf6 {[%emt 0:00:31]} 19. Be2 {[%emt 0:02:12]} Nf8 {[%emt 0:06:20]} 20. Kf1 {[%emt 0:04:34]} h6 {[%emt 0:03:06]} 21. Kg2 {[%emt 0:00:40]} Kh8 {[%emt 0:09:40]} 22. Bd3 {[%emt 0:02:23]} Nh7 {[%emt 0:00:57]} 23. c5 {[%emt 0:01:10]} Bf4 {[%emt 0:01:48]} 24. Nce2 {[%emt 0:01:14]} Bg5 {[%emt 0:07:51]} 25. Bb5 {[%emt 0:02:16]} Rf8 {[%emt 0:01:19]} 26. Qc3 {[%emt 0:00:31]} Bf4 {[%emt 0:14:34]} 27. Ra1 {[%emt 0:06:17]} c6 {[%emt 0:04:06]} 28. dxc6 {[%emt 0:06:46]} bxc6 {[%emt 0:00:06]} 29. Bxc6 {[%emt 0:02:23]} Ng5 {[%emt 0:03:28]} 30. cxd6 {[%emt 0:01:08]} Rd8 {[%emt 0:00:19]} 31. Ra8 {[%emt 0:01:47]} Rxd6 {[%emt 0:02:41]} 32. Rxc8 {[%emt 0:00:53]} Bd2 {[%emt 0:00:07]} 33. Qb3 {[%emt 0:03:38]} Rxc6 {[%emt 0:00:10]} 34. Rxc6 {[%emt 0:00:15]} Qxc6 {[%emt 0:00:03]} 35. b5 {[%emt 0:00:16]} Qb7 {[%emt 0:00:18]} 36. Qb2 {[%emt 0:00:35]} Ba5 {[%emt 0:00:41]} 37. Qxe5+ {[%emt 0:00:12]} Kh7 {[%emt 0:00:09]} 38. hxg6+ {[%emt 0:00:40]} Kxg6 {[%emt 0:02:19]} 39. b6 {[%emt 0:02:15]} Bb4 {[%emt 0:00:22]} 40. Nf5 {[%emt 0:00:00]} Ne6 {[%emt 0:00:00]} 41. Nf4+ {[%emt 0:00:00]} Nxf4+ {[%emt 0:00:00]} 42. Qxf4 {[%emt 0:00:00]} Ne7 {[%emt 0:00:00]} 43. Qxh6# 1-0

[Event "47th GRE-chT 2019"]
[Site "Patra"]
[Date "2019.07.05"]
[Round "5.10"]
[White "Mourelatos, Spyridon"]
[Black "Souchleris, Nikolaos"]
[Result "1-0"]
[ECO "B50"]
[WhiteElo "1626"]
[BlackElo "1204"]
[Annotator "NA RC"]
[PlyCount "93"]
[EventDate "2019.07.02"]
[EventCountry "GRE"]
[SourceTitle "playchess.com"]
[Source "ChessBase"]
[SourceQuality "1"]
[TimeControl "5400+30"]

1. e4 {[%emt 0:00:00]} c5 {[%emt 0:00:00]} 2. Nf3 {[%emt 0:00:00]} d6 {[%emt 0:00:00]} 3. Bc4 {[%emt 0:00:00]} Nf6 {[%emt 0:00:00]} 4. d3 {[%emt 0:00:00]} a6 {[%emt 0:00:08]} 5. c3 {[%emt 0:00:04]} Nbd7 {[%emt 0:00:16]} 6. O-O {[%emt 0:00:50]} e6 {[%emt 0:00:07]} 7. Bb3 {[%emt 0:00:49]} b5 {[%emt 0:00:52]} 8. Nbd2 {[%emt 0:00:17]} Be7 {[%emt 0:00:29]} 9. Re1 {[%emt 0:00:19]} O-O {[%emt 0:01:01]} 10. Nf1 {[%emt 0:00:25]} Bb7 {[%emt 0:01:01]} 11. Bc2 {[%emt 0:00:22]} Qc7 {[%emt 0:01:58]} 12. Bf4 {[%emt 0:00:43]} e5 {[%emt 0:03:24]} 13. Bg3 {[%emt 0:01:04]} Rfd8 {[%emt 0:01:33]} 14. Ne3 {[%emt 0:01:18]} Nf8 {[%emt 0:06:06]} 15. Nf5 {[%emt 0:01:51]} Ng6 {[%emt 0:01:31]} 16. N3h4 {[%emt 0:03:11]} Nxh4 {[%emt 0:02:39]} 17. Bxh4 {[%emt 0:00:12]} Qd7 {[%emt 0:11:02]} 18. Re3 {[%emt 0:01:15]} d5 {[%emt 0:09:10]} 19. Rg3 {[%emt 0:08:00]} g6 {[%emt 0:17:30]} 20. Qf3 {[%emt 0:01:50]} dxe4 {[%emt 0:08:32]} 21. Nxe7+ {[%emt 0:00:15]} Qxe7 {[%emt 0:00:37]} 22. Qxf6 {[%emt 0:00:11]} Qxf6 {[%emt 0:00:28]} 23. Bxf6 {[%emt 0:00:02]} Re8 {[%emt 0:04:09]} 24. dxe4 {[%emt 0:00:27]} Re6 {[%emt 0:03:40]} 25. Bg5 {[%emt 0:00:12]} f6 {[%emt 0:00:57]} 26. Be3 {[%emt 0:00:21]} c4 {[%emt 0:01:09]} 27. Rd1 {[%emt 0:00:22]} Re7 {[%emt 0:02:41]} 28. b3 {[%emt 0:02:50]} cxb3 {[%emt 0:02:14]} 29. Bxb3+ {[%emt 0:00:09]} Kg7 {[%emt 0:00:17]} 30. Bc5 {[%emt 0:06:31]} Rc7 {[%emt 0:01:54]} 31. Bb6 {[%emt 0:00:12]} Re7 {[%emt 0:02:52]} 32. Bd5 {[%emt 0:01:04]} Rd7 {[%emt 0:02:15]} 33. Rgd3 {[%emt 0:00:15]} Rb8 {[%emt 0:00:58]} 34. Bxb7 {[%emt 0:01:34]} Rdxb7 {[%emt 0:00:35]} 35. Rd7+ {[%emt 0:00:26]} Kh6 {[%emt 0:01:20]} 36. Be3+ {[%emt 0:00:57]} Kh5 {[%emt 0:00:50]} 37. h3 {[%emt 0:00:25]} h6 {[%emt 0:00:31]} 38. Rxb7 {[%emt 0:02:23]} Rxb7 {[%emt 0:00:09]} 39. Rd6 {[%emt 0:00:20]} Rc7 {[%emt 0:00:24]} 40. Bd2 {[%emt 0:00:00]} Rc4 {[%emt 0:00:00]} 41. Rxf6 {[%emt 0:00:00]} Ra4 {[%emt 0:00:00]} 42. g4+ {[%emt 0:00:00]} Kh4 {[%emt 0:00:00]} 43. Kg2 {[%emt 0:00:00]} Rxa2 {[%emt 0:00:00]} 44. Bxh6 {[%emt 0:00:00]} Re2 {[%emt 0:00:00]} 45. Be3 {[%emt 0:00:00]} a5 {[%emt 0:00:00]} 46. Rxg6 {[%emt 0:00:00]} Rxf2+ {[%emt 0:00:00]} 47. Bxf2# {[%emt 0:00:00]} 1-0

[Event "47th GRE-chT 2019"]
[Site "Patra"]
[Date "2019.07.05"]
[Round "5.10"]
[White "Dristellas, Neoklis"]
[Black "Merkos, Thomas"]
[Result "1/2-1/2"]
[ECO "B40"]
[WhiteElo "1577"]
[BlackElo "1665"]
[Annotator "NA RC"]
[PlyCount "89"]
[EventDate "2019.07.02"]
[EventCountry "GRE"]
[SourceTitle "playchess.com"]
[Source "ChessBase"]
[SourceQuality "1"]
[TimeControl "5400+30"]

1. e4 {[%emt 0:00:00]} c5 {[%emt 0:00:00]} 2. Nf3 {[%emt 0:00:00]} e6 {[%emt 0:00:00]} 3. d4 {[%emt 0:00:00]} cxd4 {[%emt 0:00:00]} 4. Nxd4 {[%emt 0:00:00]} Nc6 {[%emt 0:02:25]} 5. Nxc6 {[%emt 0:00:04]} bxc6 {[%emt 0:01:01]} 6. Bd3 {[%emt 0:00:44]} d6 {[%emt 0:00:43]} 7. O-O {[%emt 0:02:21]} e5 {[%emt 0:03:40]} 8. Kh1 {[%emt 0:01:25]} Nf6 {[%emt 0:04:30]} 9. c4 {[%emt 0:08:17]} Be7 {[%emt 0:01:33]} 10. Nc3 {[%emt 0:00:15]} O-O {[%emt 0:00:51]} 11. h3 {[%emt 0:06:56]} Nd7 {[%emt 0:06:30]} 12. f4 {[%emt 0:05:48]} Rb8 {[%emt 0:05:53]} 13. b3 {[%emt 0:07:47]} Nc5 {[%emt 0:02:44]} 14. Bc2 {[%emt 0:04:27]} Ne6 {[%emt 0:02:39]} 15. Ne2 {[%emt 0:06:46]} Bf6 {[%emt 0:05:24]} 16. f5 {[%emt 0:00:50]} Nd4 {[%emt 0:02:46]} 17. Be3 {[%emt 0:01:46]} c5 {[%emt 0:05:43]} 18. Nc3 {[%emt 0:00:37]} Bb7 {[%emt 0:01:58]} 19. Nd5 {[%emt 0:00:26]} Bxd5 {[%emt 0:01:01]} 20. exd5 {[%emt 0:09:07]} Bg5 {[%emt 0:12:31]} 21. Bxd4 {[%emt 0:02:54]} cxd4 {[%emt 0:05:44]} 22. Qh5 {[%emt 0:08:16]} Qf6 {[%emt 0:09:04]} 23. g4 {[%emt 0:08:41]} Rbe8 {[%emt 0:04:20]} 24. Be4 {[%emt 0:11:31]} Bf4 {[%emt 0:11:43]} 25. Rg1 {[%emt 0:05:49]} g6 {[%emt 0:01:45]} 26. g5 {[%emt 0:01:04]} Qxf5 {[%emt 0:04:08]} 27. Bxf5 {[%emt 0:00:04]} gxh5 {[%emt 0:00:54]} 28. Be4 {[%emt 0:01:57]} Kh8 {[%emt 0:01:22]} 29. h4 {[%emt 0:03:14]} h6 {[%emt 0:00:30]} 30. g6 {[%emt 0:01:56]} fxg6 {[%emt 0:00:43]} 31. Rxg6 {[%emt 0:01:05]} Rd8 {[%emt 0:00:55]} 32. Rag1 {[%emt 0:00:53]} Be3 {[%emt 0:01:33]} 33. R1g3 {[%emt 0:00:24]} Rf1+ {[%emt 0:00:23]} 34. Kg2 {[%emt 0:00:45]} Rf2+ {[%emt 0:01:14]} 35. Kh1 {[%emt 0:00:42]} Rf1+ {[%emt 0:00:07]} 36. Kg2 {[%emt 0:00:08]} Rg1+ {[%emt 0:00:36]} 37. Kh2 {[%emt 0:00:25]} Rxg3 {[%emt 0:00:14]} 38. Kxg3 {[%emt 0:00:30]} Rg8 {[%emt 0:00:55]} 39. c5 {[%emt 0:00:28]} Rxg6+ {[%emt 0:00:00]} 40. Bxg6 {[%emt 0:00:00]} dxc5 {[%emt 0:00:00]} 41. Kf3 {[%emt 0:00:00]} Kg7 {[%emt 0:00:00]} 42. Bxh5 {[%emt 0:00:00]} Kf6 {[%emt 0:00:00]} 43. Bg4 {[%emt 0:00:00]} Bd2 {[%emt 0:00:00]} 44. Ke4 {[%emt 0:00:00]} Bf4 {[%emt 0:00:00]} 45. Bf3 {[%emt 0:00:00]} 1/2-1/2

[Event "47th GRE-chT 2019"]
[Site "Patra"]
[Date "2019.07.05"]
[Round "5.11"]
[White "Papaioannou, Ioannis"]
[Black "Laznicka, Viktor"]
[Result "1/2-1/2"]
[ECO "C67"]
[WhiteElo "2640"]
[BlackElo "2658"]
[Annotator "RC"]
[PlyCount "62"]
[EventDate "2019.07.02"]
[EventCountry "GRE"]
[SourceTitle "playchess.com"]
[Source "ChessBase"]
[SourceQuality "1"]
[TimeControl "5400+30"]

1. e4 {[%emt 0:00:00]} e5 {[%emt 0:00:00]} 2. Nf3 {[%emt 0:00:00]} Nc6 {[%emt 0:00:00]} 3. Bb5 {[%emt 0:00:00]} Nf6 {[%emt 0:00:00]} 4. O-O {[%emt 0:00:57]} Nxe4 {[%emt 0:00:00]} 5. Re1 {[%emt 0:00:44]} Nd6 {[%emt 0:00:00]} 6. Nxe5 {[%emt 0:00:19]} Be7 {[%emt 0:00:00]} 7. Bf1 {[%emt 0:00:24]} Nxe5 {[%emt 0:00:25]} 8. Rxe5 {[%emt 0:00:06]} O-O {[%emt 0:00:15]} 9. d4 {[%emt 0:00:15]} Bf6 {[%emt 0:01:22]} 10. Re1 {[%emt 0:00:28]} Re8 {[%emt 0:00:10]} 11. c3 {[%emt 0:00:30]} Rxe1 {[%emt 0:03:06]} 12. Qxe1 {[%emt 0:00:56]} Qe7 {[%emt 0:00:02]} 13. Qxe7 {[%emt 0:01:00]} Bxe7 {[%emt 0:00:05]} 14. Bf4 {[%emt 0:01:02]} b6 {[%emt 0:08:25]} 15. Nd2 {[%emt 0:04:03]} Bb7 {[%emt 0:01:34]} 16. Re1 {[%emt 0:01:23]} Kf8 {[%emt 0:01:08]} 17. g3 {[%emt 0:03:04]} Ne8 {[%emt 0:08:59]} 18. Nc4 {[%emt 0:02:20]} Rd8 {[%emt 0:01:14]} 19. h4 {[%emt 0:02:43]} d5 {[%emt 0:04:33]} 20. Ne3 {[%emt 0:01:48]} Bd6 {[%emt 0:00:38]} 21. Bxd6+ {[%emt 0:02:11]} Nxd6 {[%emt 0:00:05]} 22. f3 {[%emt 0:01:31]} a5 {[%emt 0:04:47]} 23. Kf2 {[%emt 0:01:18]} Re8 {[%emt 0:00:11]} 24. Bd3 {[%emt 0:01:32]} h6 {[%emt 0:01:15]} 25. Nf5 {[%emt 0:08:24]} Nxf5 {[%emt 0:00:31]} 26. Rxe8+ {[%emt 0:00:09]} Kxe8 {[%emt 0:00:02]} 27. Bxf5 {[%emt 0:00:08]} Ke7 {[%emt 0:00:02]} 28. Ke3 {[%emt 0:01:15]} Ba6 {[%emt 0:00:16]} 29. Bc2 {[%emt 0:01:14]} g5 {[%emt 0:01:14]} 30. hxg5 {[%emt 0:00:38]} hxg5 {[%emt 0:00:04]} 31. a3 {[%emt 0:00:24]} Bc8 {[%emt 0:00:14] Ke4} 1/2-1/2